bitfinex/quotes_SOLUSD_20240808
["timestamp","ask_amount","ask_price","bid_price","bid_amount"]
[1723097767419,0.8149203,153.42,153.41,20.17]
[1723097767616,0.8149203,153.42,153.41,65.34]
[1723097768010,0.8149203,153.42,153.34,36.89]
[1723097768230,0.8149203,153.42,153.32,17.33068559]
[1723097768550,0.8149203,153.42,153.32,16.027]
[1723097769049,0.8149203,153.42,153.33,1.30388172]
[1723097769426,0.8149203,153.42,153.33,21.30388172]
[1723097769625,0.8149203,153.42,153.33,20.0]
[1723097769822,0.8149203,153.42,153.34,0.17]
[1723097770017,0.8149203,153.42,153.34,45.34]
[1723097770243,0.8149203,153.42,153.34,0.34]
[1723097770439,0.8149203,153.42,153.32,18.6682638]
[1723097770440,0.8149203,153.42,153.35,0.17]
[1723097770652,0.8149203,153.42,153.33,0.34]
[1723097770853,0.8149203,153.42,153.33,0.17]
[1723097771427,0.8149203,153.42,153.33,46.47305317]
[1723097771929,0.8149203,153.42,153.33,45.17]
[1723097772235,6.1129,153.41,153.34,20.0]
[1723097773047,6.1129,153.41,153.28,53.419]
[1723097773048,389.1,153.4,153.28,53.419]
[1723097773422,389.1,153.4,153.31,36.89]
[1723097773622,389.1,153.4,153.32,1.11466478]
[1723097774253,0.8149203,153.42,153.32,66.11466478]
[1723097774547,0.8149203,153.42,153.33,0.34]
[1723097774743,0.8149203,153.42,153.33,1.64383274]
[1723097775142,0.8149203,153.42,153.34,56.5]
[1723097775339,0.8149203,153.42,153.35,66.64350667]
[1723097775551,0.8149203,153.42,153.36,1.30342167]
[1723097775856,0.8149203,153.42,153.37,0.34]
[1723097776153,0.8149203,153.42,153.38,1.30325171]
[1723097776359,0.8149203,153.42,153.39,0.34]
[1723097776523,0.8149203,153.42,153.4,0.17]
[1723097776727,0.8149203,153.42,153.37,0.17]
[1723097777125,0.8149203,153.42,153.36,0.34]
[1723097778453,0.8149203,153.42,153.35,21.30348074]
[1723097778643,0.8149203,153.42,153.36,1.30385945]
[1723097779141,0.8149203,153.42,153.33,1.3037798]
[1723097779346,0.8149203,153.42,153.35,36.89]
[1723097779546,0.8149203,153.42,153.36,21.30344769]
[1723097780337,0.8149203,153.42,153.38,1.30327772]
[1723097780537,0.8149203,153.42,153.37,0.34]
[1723097780538,0.8149203,153.42,153.39,0.34]
[1723097780836,0.8149203,153.42,153.4,0.17]
[1723097781341,0.8149203,153.42,153.4,20.17]
[1723097781552,0.8149203,153.42,153.41,45.17]
[1723097781760,0.8149203,153.42,153.41,65.17]
[1723097782063,0.8149203,153.42,153.41,65.34]
[1723097783361,0.8149203,153.42,153.41,65.17]
[1723097783861,0.8149203,153.42,153.41,65.34]
[1723097784549,0.8149203,153.42,153.41,65.17]
[1723097785658,0.8149203,153.42,153.34,22.0687]
[1723097785836,0.8149203,153.42,153.35,1.30367064]
[1723097786040,0.8149203,153.42,153.36,1.30381034]
[1723097786366,0.8149203,153.42,153.33,1.30374331]
[1723097787456,0.8149203,153.42,153.35,56.5]
[1723097787768,0.8149203,153.42,153.36,46.64342661]
[1723097787929,0.8149203,153.42,153.36,66.25342661]
[1723097788132,0.8149203,153.42,153.36,64.95]
[1723097788346,0.8149203,153.42,153.37,20.0]
[1723097788665,0.8149203,153.42,153.38,45.34]
[1723097788968,0.8149203,153.42,153.39,20.0]
[1723097789147,0.8149203,153.42,153.4,45.34]
[1723097789346,0.8149203,153.42,153.41,20.0]
[1723097789538,0.8149203,153.42,153.41,65.17]
[1723097790242,0.8149203,153.42,153.41,65.0]
[1723097790444,0.8149203,153.42,153.41,65.17]
[1723097790657,0.8149203,153.42,153.41,65.0]
[1723097790837,0.8149203,153.42,153.41,20.0]
[1723097791164,0.8149203,153.42,153.41,45.0]
[1723097791364,0.8149203,153.42,153.41,65.0]
[1723097791569,0.8149203,153.42,153.41,65.17]
[1723097792139,0.8149203,153.42,153.41,65.34]
[1723097792836,0.8149203,153.42,153.41,65.17]
[1723097793448,0.8149203,153.42,153.41,65.34]
[1723097793948,6.3215,153.49,153.41,65.34]
[1723097793949,405.4115,153.5,153.41,95.23266796]
[1723097794146,405.4115,153.5,153.44,28.59]
[1723097794147,16.3115,153.5,153.44,28.59]
[1723097794343,16.3115,153.5,153.45,65.17]
[1723097794666,16.3115,153.5,153.45,20.0]
[1723097794849,16.3115,153.5,153.4,28.59]
[1723097795168,16.3115,153.5,153.41,65.34]
[1723097795479,16.3115,153.5,153.44,28.59]
[1723097795651,6.0802,153.53,153.45,65.34]
[1723097796369,6.0802,153.53,153.46,28.59]
[1723097796537,6.0802,153.53,153.47,65.34]
[1723097797360,6.0802,153.53,153.47,20.0]
[1723097797663,6.0802,153.53,153.44,28.59]
[1723097797873,6.0802,153.53,153.45,20.0]
[1723097798868,7.70893189,153.53,153.46,45.0]
[1723097799054,6.0802,153.53,153.46,45.0]
[1723097799460,6.0802,153.53,153.47,20.17]
[1723097800060,6.0802,153.53,153.47,20.0]
[1723097800254,15.8553,153.54,153.48,45.0]
[1723097800568,15.8553,153.54,153.49,20.0]
[1723097801167,15.8553,153.54,153.47,20.0]
[1723097801548,0.65159315,153.48,153.47,20.0]
[1723097801855,0.65159315,153.48,153.45,20.0]
[1723097802051,0.65159315,153.48,153.46,45.0]
[1723097802257,0.65159315,153.48,153.47,20.0]
[1723097802654,0.65159315,153.48,153.47,65.0]
[1723097803264,0.65159315,153.48,153.47,65.34]
[1723097803971,0.65159315,153.48,153.47,65.17]
[1723097804268,0.65159315,153.48,153.47,20.0]
[1723097804490,0.65159315,153.48,153.44,28.59]
[1723097804774,0.65159315,153.48,153.45,45.17]
[1723097805765,0.65159315,153.48,153.46,20.0]
[1723097808158,0.65159315,153.48,153.46,21.30303699]
[1723097808359,0.65159315,153.48,153.47,45.17]
[1723097808554,0.65159315,153.48,153.47,65.34]
[1723097809267,0.65159315,153.48,153.47,65.17]
[1723097809466,0.65159315,153.48,153.47,20.0]
[1723097809783,0.65159315,153.48,153.45,20.0]
[1723097809956,0.65159315,153.48,153.46,45.17]
[1723097810155,0.65159315,153.48,153.47,21.30303894]
[1723097810466,0.65159315,153.48,153.47,20.0]
[1723097810665,0.65159315,153.48,153.47,0.17]
[1723097811475,0.65159315,153.48,153.47,0.34]
[1723097811680,0.65159315,153.48,153.47,20.34]
[1723097811877,0.65159315,153.48,153.47,93.93]
[1723097813561,0.65159315,153.48,153.47,48.59]
[1723097814875,0.65159315,153.48,153.47,93.93]
[1723097815385,0.8149203,153.57,153.47,109.8647]
[1723097815592,0.8149203,153.57,153.52,28.59]
[1723097815963,0.8149203,153.57,153.53,1.47243276]
[1723097816163,0.8149203,153.57,153.54,28.59]
[1723097816371,0.8149203,153.57,153.55,20.0]
[1723097817190,0.8149203,153.57,153.53,20.0]
[1723097817489,0.8149203,153.57,153.51,20.0]
[1723097820386,0.8149203,153.57,153.52,28.59]
[1723097820597,0.8149203,153.57,153.52,30.06257845]
[1723097820884,0.8149203,153.57,153.53,20.0]
[1723097821668,0.8149203,153.57,153.54,45.17]
[1723097822096,0.8149203,153.57,153.54,73.76]
[1723097822301,0.8149203,153.57,153.56,28.59]
[1723097822596,0.8149203,153.57,153.56,93.59]
[1723097822886,0.8149203,153.57,153.56,20.0]
[1723097823085,0.8149203,153.57,153.54,73.76]
[1723097823086,0.8149203,153.57,153.55,20.0]
[1723097823292,0.8149203,153.57,153.56,73.59]
[1723097823587,0.8149203,153.57,153.56,45.0]
[1723097823769,0.8149203,153.57,153.56,20.0]
[1723097823969,0.8149203,153.57,153.54,28.59]
[1723097824179,0.8149203,153.57,153.55,20.0]
[1723097825396,0.8149203,153.57,153.56,73.76]
[1723097825691,0.8149203,153.57,153.56,73.93]
[1723097826693,0.8149203,153.57,153.56,73.76]
[1723097827196,21.8491,153.66,153.56,93.93]
[1723097827397,21.8491,153.66,153.57,20.0]
[1723097827887,50.4391,153.66,153.54,28.59]
[1723097828097,50.4391,153.66,153.55,0.17]
[1723097828267,1.62773646,153.65,153.55,0.17]
[1723097828470,50.4391,153.66,153.54,28.59]
[1723097828779,52.06698673,153.66,153.54,28.59]
[1723097828977,50.4391,153.66,153.54,28.59]
[1723097829175,50.4391,153.66,153.55,20.0]
[1723097829377,52.06698603,153.66,153.55,20.0]
[1723097829577,28.59,153.64,153.55,20.0]
[1723097829893,28.59,153.62,153.5,43.6374]
[1723097830095,1.6282137,153.61,153.5,43.6374]
[1723097830396,30.21822396,153.62,153.5,43.6374]
[1723097830600,389.1,153.63,153.52,28.59]
[1723097830893,389.1,153.63,153.54,28.59]
[1723097831079,389.1,153.63,153.55,20.0]
[1723097832015,389.1,153.63,153.55,21.30223099]
[1723097832196,389.1,153.63,153.55,20.0]
[1723097833193,22.3293,153.7,153.62,28.59]
[1723097833401,22.3293,153.7,153.63,20.0]
[1723097837285,22.3293,153.7,153.61,20.0]
[1723097838001,22.3293,153.7,153.62,28.59]
[1723097838205,22.3293,153.7,153.63,20.0]
[1723097838608,424.65867135,153.71,153.64,73.76]
[1723097838980,35.55867135,153.71,153.65,1.3014658]
[1723097839175,35.55867135,153.71,153.66,44.0312]
[1723097839382,35.55867135,153.71,153.68,28.59]
[1723097840585,35.55867135,153.71,153.69,1.30114941]
[1723097840900,35.55867135,153.71,153.68,28.59]
[1723097841283,35.55867135,153.71,153.69,65.17]
[1723097841686,35.55867135,153.71,153.7,28.59]
[1723097841880,14.98185122,153.71,153.7,93.76]
[1723097842087,253.6,153.83,153.7,93.93]
[1723097842292,411.4257,153.84,153.73,28.59]
[1723097842293,389.1,153.82,153.73,28.59]
[1723097842506,389.1,153.82,153.71,93.59]
[1723097842679,389.1,153.82,153.71,48.59]
[1723097843881,389.1,153.82,153.71,49.89079453]
[1723097844476,389.1,153.82,153.73,28.59]
[1723097844677,389.1,153.82,153.74,1.30069516]
[1723097845403,0.8149203,153.87,153.74,1.30069516]
[1723097845404,0.8149203,153.87,153.77,28.59]
[1723097846109,0.8149203,153.87,153.75,23.557]
[1723097846110,0.8149203,153.87,153.75,51.977]
[1723097846281,28.59,153.86,153.76,20.0]
[1723097847406,0.8149203,153.87,153.77,28.59]
[1723097847585,0.8149203,153.87,153.78,20.0]
[1723097848193,1.62523247,153.86,153.78,20.0]
[1723097848507,0.8149203,153.87,153.77,0.17]
[1723097848694,0.8149203,153.87,153.77,45.17]
[1723097848886,0.8149203,153.87,153.78,20.0]
[1723097849091,0.8149203,153.87,153.78,48.59]
[1723097849328,0.8149203,153.87,153.8,28.59]
[1723097849606,0.8149203,153.87,153.82,50.4681]
[1723097849819,0.8149203,153.87,153.83,65.0]
[1723097849981,0.8149203,153.87,153.83,20.0]
[1723097850984,0.8149203,153.87,153.82,21.8781]
[1723097851304,0.8149203,153.87,153.83,1.2989543]
[1723097851981,0.8149203,153.87,153.82,21.8781]
[1723097852378,0.8149203,153.87,153.78,51.4156]
[1723097852608,0.8149203,153.87,153.79,20.0]
[1723097853308,0.8149203,153.87,153.8,1.29958838]
[1723097853610,0.8149203,153.87,153.79,48.59]
[1723097853795,0.8149203,153.87,153.8,0.17]
[1723097853998,0.8149203,153.87,153.8,45.0]
[1723097854208,0.8149203,153.87,153.81,20.0]
[1723097854534,0.8149203,153.87,153.79,20.0]
[1723097854719,0.8149203,153.87,153.78,22.8256]
[1723097855079,0.8149203,153.87,153.79,29.88940181]
[1723097855384,0.8149203,153.87,153.81,28.59]
[1723097855591,0.8149203,153.87,153.83,28.59]
[1723097855792,0.8149203,153.87,153.85,28.59]
[1723097856095,0.8149203,153.87,153.83,28.59]
[1723097856291,0.8149203,153.87,153.86,28.59]
[1723097856481,0.8149203,153.87,153.86,48.59]
[1723097857112,0.8149203,153.87,153.86,20.0]
[1723097857290,0.8149203,153.87,153.86,0.17]
[1723097857487,0.8149203,153.87,153.86,45.17]
[1723097857693,0.8149203,153.87,153.86,65.17]
[1723097857879,0.8149203,153.87,153.86,48.76]
[1723097858109,6.0,153.91,153.86,116.1684]
[1723097858314,6.0,153.91,153.89,28.59]
[1723097858620,6.0,153.91,153.9,65.17]
[1723097859094,6.0,153.91,153.86,22.2384]
[1723097859408,6.0,153.91,153.87,20.0]
[1723097859714,6.0,153.91,153.87,20.17]
[1723097859920,6.0,153.91,153.87,20.0]
[1723097860615,6.0,153.91,153.83,20.0]
[1723097860791,6.0,153.91,153.84,45.17]
[1723097861191,6.0,153.91,153.84,0.17]
[1723097861709,0.65002601,153.85,153.84,0.17]
[1723097861886,0.65002601,153.85,153.84,28.76]
[1723097862082,6.0,153.91,153.84,94.65123329]
[1723097862396,6.0,153.91,153.85,20.0]
[1723097862583,6.0,153.91,153.82,21.4825]
[1723097862584,34.59,153.91,153.82,21.4825]
[1723097863092,28.59,153.89,153.77,28.59]
[1723097863309,36.21484878,153.91,153.77,28.59]
[1723097863490,34.59,153.91,153.79,28.59]
[1723097863697,6.0,153.91,153.77,56.16]
[1723097863891,6.0,153.91,153.78,1.2997855]
[1723097864427,6.0,153.91,153.79,19.78]
[1723097864718,6.0,153.91,153.8,66.29958218]
[1723097864923,6.0,153.91,153.81,0.17]
[1723097865291,6.0,153.91,153.81,1.63968913]
[1723097866430,6.0,153.91,153.82,1.29959092]
[1723097866720,6.0,153.91,153.83,0.34]
[1723097866921,6.0,153.91,153.81,0.34]
[1723097867221,6.0,153.91,153.81,0.17]
[1723097867786,6.0,153.91,153.82,1.29970181]
[1723097868019,6.0,153.91,153.83,0.17]
[1723097868206,6.0,153.91,153.81,1.46976847]
[1723097868408,6.0,153.91,153.81,0.17]
[1723097868720,6.0,153.91,153.81,45.34]
[1723097868892,6.0,153.91,153.82,20.0]
[1723097869218,6.0,153.91,153.83,45.34]
[1723097869398,6.0,153.91,153.84,20.0]
[1723097870513,6.0,153.91,153.78,1.29973794]
[1723097870514,6.0,153.91,153.78,21.29973794]
[1723097870821,1.62487406,153.9,153.78,20.0]
[1723097870993,1.62487406,153.9,153.76,6.5244]
[1723097870994,389.1,153.89,153.76,6.5244]
[1723097871193,1.62531038,153.88,153.76,6.5244]
[1723097871793,390.72531038,153.88,153.76,6.5244]
[1723097872223,425.65,153.88,153.72,7.23297259]
[1723097872427,389.1,153.88,153.73,0.87700035]
[1723097872797,389.1,153.88,153.72,25.6725]
[1723097872798,389.1,153.88,153.74,57.0369433]
[1723097873121,389.1,153.88,153.77,56.16]
[1723097873314,389.1,153.88,153.78,1.06649646]
[1723097873494,389.1,153.88,153.79,0.17]
[1723097873695,389.1,153.88,153.79,20.17]
[1723097874001,389.1,153.88,153.8,45.0]
[1723097874200,389.1,153.88,153.81,20.34]
[1723097874402,389.1,153.88,153.82,45.0]
[1723097874792,389.1,153.88,153.83,20.17]
[1723097875107,21.7062,153.9,153.83,20.17]
[1723097875920,21.7062,153.9,153.83,20.0]
[1723097876120,21.7062,153.9,153.79,20.0]
[1723097876324,6.1971,153.9,153.8,37.84986063]
[1723097876498,6.1971,153.9,153.81,20.0]
[1723097876695,7.82179423,153.9,153.81,20.0]
[1723097876995,6.1971,153.9,153.81,20.0]
[1723097877196,1.62489244,153.89,153.8,0.17]
[1723097877436,6.1971,153.9,153.82,45.0]
[1723097877605,6.1971,153.9,153.83,20.34]
[1723097878112,6.1971,153.9,153.83,20.17]
[1723097878310,6.1971,153.9,153.83,21.19445053]
[1723097878504,6.1971,153.9,153.83,20.17]
[1723097878698,6.1971,153.9,153.83,20.0]
[1723097879114,6.1971,153.9,153.79,20.0]
[1723097879311,6.1971,153.9,153.8,46.63989028]
[1723097879530,6.1971,153.9,153.81,20.0]
[1723097879730,6.1971,153.9,153.82,46.63982973]
[1723097879907,6.0,153.91,153.83,20.0]
[1723097880100,6.0,153.91,153.84,45.17]
[1723097880306,6.0,153.91,153.85,21.29922021]
[1723097880507,6.0,153.91,153.85,20.0]
[1723097880709,6.0,153.91,153.82,0.17]
[1723097880917,6.0,153.91,153.82,0.34]
[1723097881126,6.0,153.91,153.82,1.29930946]
[1723097881323,6.0,153.91,153.83,0.34]
[1723097881629,0.65006826,153.84,153.83,0.34]
[1723097881824,0.65006826,153.84,153.83,1.63968596]
[1723097882001,0.65006826,153.84,153.83,0.17]
[1723097882210,0.65006826,153.84,153.79,20.0]
[1723097882403,0.65006826,153.84,153.78,19.02036159]
[1723097882820,0.65006826,153.84,153.78,16.38]
[1723097883722,0.65006826,153.84,153.79,48.44]
[1723097884123,0.65006826,153.84,153.76,28.44]
[1723097885234,0.65006826,153.84,153.77,1.30037138]
[1723097885422,0.65006826,153.84,153.76,28.44]
[1723097886522,0.65006826,153.84,153.77,20.0]
[1723097887136,0.65006826,153.84,153.76,28.44]
[1723097887338,0.65006826,153.84,153.74,28.44]
[1723097887711,389.1,153.83,153.72,28.44]
[1723097887910,389.1,153.83,153.72,31.12191724]
[1723097888330,389.1,153.83,153.72,28.44]
[1723097888742,6.4431,153.82,153.7,47.70358457]
[1723097888943,389.1,153.81,153.7,28.44]
[1723097889239,15.5573,153.79,153.7,28.44]
[1723097890013,15.5573,153.79,153.72,28.44]
[1723097890239,15.5573,153.79,153.73,1.30073563]
[1723097890422,389.1,153.81,153.74,28.44]
[1723097890621,389.1,153.81,153.72,28.44]
[1723097890835,389.1,153.81,153.73,1.30027159]
[1723097891024,389.1,153.81,153.72,28.44]
[1723097891337,389.1,153.81,153.73,21.30076192]
[1723097891838,389.1,153.81,153.73,20.0]
[1723097892013,1.62586011,153.8,153.73,20.0]
[1723097892215,1.62586011,153.8,153.71,20.0]
[1723097892414,389.1,153.81,153.72,45.0]
[1723097892717,6.4431,153.82,153.73,20.17]
[1723097893524,34.8831,153.82,153.73,20.0]
[1723097893725,36.50901229,153.82,153.71,20.0]
[1723097894846,28.44,153.8,153.71,20.0]
[1723097895025,28.44,153.8,153.64,4.65638844]
[1723097895026,45.0036,153.78,153.64,26.60948844]
[1723097895229,6.0831,153.76,153.66,28.44]
[1723097896822,6.0831,153.76,153.67,0.17]
[1723097897026,6.0831,153.76,153.68,28.44]
[1723097897227,6.0831,153.76,153.69,20.0]
[1723097897434,389.1,153.75,153.64,31.11059065]
[1723097897827,389.1,153.75,153.66,28.44]
[1723097898432,389.1,153.75,153.68,28.44]
[1723097898846,389.1,153.75,153.69,20.0]
[1723097899755,389.1,153.75,153.7,73.44]
[1723097899926,16.5636,153.78,153.71,28.44]
[1723097900129,16.5636,153.78,153.72,20.0]
[1723097901051,1.62618235,153.77,153.72,20.0]
[1723097901255,16.5636,153.78,153.7,20.0]
[1723097901633,0.65006826,153.71,153.7,20.0]
[1723097901829,0.65006826,153.71,153.7,20.17]
[1723097902041,0.65006826,153.71,153.7,65.34]
[1723097903148,1e-08,153.71,153.7,65.34]
[1723097905471,6.1832,153.81,153.75,28.44]
[1723097905762,15.3103,153.82,153.76,20.0]
[1723097905942,15.3103,153.82,153.76,20.17]
[1723097906132,15.3103,153.82,153.76,20.0]
[1723097906463,15.3103,153.82,153.76,21.30026359]
[1723097906638,15.3103,153.82,153.76,20.0]
[1723097906833,6.6661,153.85,153.77,0.17]
[1723097907040,6.6661,153.85,153.76,20.0]
[1723097907352,6.6661,153.85,153.77,0.17]
[1723097907531,6.6661,153.85,153.76,20.0]
[1723097908146,6.6661,153.85,153.77,28.44]
[1723097908365,15.4131,153.86,153.78,20.17]
[1723097908534,15.4131,153.86,153.79,28.44]
[1723097908732,15.4131,153.86,153.8,20.0]
[1723097909337,15.4131,153.86,153.78,20.0]
[1723097909744,15.4131,153.86,153.79,73.78]
[1723097909956,1.6251894,153.88,153.8,20.0]
[1723097910362,6.3785,153.89,153.8,20.0]
[1723097910541,6.3785,153.89,153.81,0.17]
[1723097910954,6.3785,153.89,153.81,28.61]
[1723097911241,389.1,153.9,153.82,20.0]
[1723097912533,1.62494976,153.89,153.82,20.0]
[1723097912959,389.1,153.9,153.82,20.0]
[1723097913154,389.1,153.9,153.83,28.44]
[1723097913360,6.0,153.91,153.85,28.44]
[1723097913663,6.0,153.91,153.87,28.44]
[1723097913862,6.0,153.91,153.88,20.0]
[1723097914069,6.0,153.91,153.86,20.0]
[1723097914260,6.0,153.91,153.81,0.17]
[1723097914261,1.6248927,153.9,153.81,0.17]
[1723097914447,34.44,153.91,153.81,20.17]
[1723097914854,34.44,153.91,153.81,0.17]
[1723097915067,1.62508515,153.9,153.8,18.06824197]
[1723097915269,390.72508515,153.9,153.8,18.06824197]
[1723097915646,390.72508515,153.9,153.81,73.78]
[1723097915647,389.1,153.9,153.81,73.78]
[1723097916065,389.1,153.9,153.81,28.44]
[1723097916262,389.1,153.9,153.82,20.0]
[1723097916656,6.2255,153.88,153.78,6.515]
[1723097916867,1.62535254,153.87,153.78,6.515]
[1723097917082,6.2255,153.88,153.78,6.515]
[1723097917251,6.2255,153.88,153.79,28.44]
[1723097917460,6.2255,153.88,153.81,28.44]
[1723097917769,6.2255,153.88,153.79,28.44]
[1723097917968,6.2255,153.88,153.8,0.17]
[1723097918170,6.2255,153.88,153.8,20.0]
[1723097918473,15.5922,153.87,153.79,20.0]
[1723097919171,15.5922,153.87,153.78,20.0]
[1723097919956,15.5922,153.87,153.79,28.61]
[1723097920158,6.2255,153.88,153.8,20.0]
[1723097920477,6.2255,153.88,153.81,28.44]
[1723097920766,6.2255,153.88,153.82,20.0]
[1723097922380,7.8506323,153.88,153.82,20.0]
[1723097922680,6.2255,153.88,153.8,20.0]
[1723097923852,7.85079811,153.88,153.78,20.0]
[1723097924361,6.2255,153.88,153.78,20.0]
[1723097924555,22.93305136,153.91,153.79,28.44]
[1723097924748,21.3076,153.91,153.81,28.44]
[1723097924950,21.3076,153.91,153.82,20.17]
[1723097925175,21.3076,153.91,153.83,45.17]
[1723097925376,6.0,153.91,153.84,20.17]
[1723097925759,6.0,153.91,153.84,20.0]
[1723097927045,6.0,153.91,153.81,28.44]
[1723097927046,6.0,153.91,153.83,20.0]
[1723097927250,6.0,153.91,153.82,20.0]
[1723097927573,6.0,153.91,153.83,29.73989062]
[1723097927782,6.0,153.91,153.84,20.17]
[1723097928077,6.0,153.91,153.85,1.29960724]
[1723097928276,6.0,153.91,153.87,28.44]
[1723097928476,6.0,153.91,153.88,21.29943831]
[1723097928950,6.0,153.91,153.89,28.61]
[1723097929148,6.0,153.91,153.9,20.0]
[1723097929969,6.0,153.91,153.88,20.0]
[1723097930752,6.0,153.91,153.89,28.44]
[1723097930950,6.0,153.91,153.9,20.0]
[1723097931546,6.0,153.91,153.88,20.0]
[1723097932089,6.0,153.91,153.89,0.17]
[1723097932550,6.0,153.91,153.88,20.0]
[1723097933349,6.0,153.91,153.89,28.44]
[1723097933552,6.0,153.91,153.9,20.0]
[1723097934471,6.0,153.91,153.9,20.17]
[1723097934669,6.0,153.91,153.9,20.0]
[1723097934873,6.0,153.91,153.88,20.0]
[1723097935256,6.0,153.91,153.89,0.17]
[1723097935452,6.0,153.91,153.88,20.0]
[1723097936656,6.0,153.91,153.89,28.44]
[1723097936859,6.0,153.91,153.9,20.0]
[1723097937058,6.0,153.91,153.9,20.17]
[1723097937288,6.0,153.91,153.9,20.0]
[1723097937657,6.0,153.91,153.85,28.44]
[1723097938080,6.0,153.91,153.86,1.29896207]
[1723097938273,6.0,153.91,153.87,28.44]
[1723097938986,6.0,153.91,153.88,1.2988381]
[1723097939183,6.0,153.91,153.88,20.0]
[1723097939359,6.0,153.91,153.88,21.29960666]
[1723097939773,6.0,153.91,153.88,20.0]
[1723097940167,6.0,153.91,153.89,28.44]
[1723097940168,5.53832815,153.91,153.89,28.44]
[1723097940368,5.53832815,153.91,153.9,20.0]
[1723097941286,5.53832815,153.91,153.83,24.2369063]
[1723097941586,5.53832815,153.91,153.87,28.44]
[1723097942667,5.53832815,153.91,153.88,20.17]
[1723097943076,5.53832815,153.91,153.88,20.0]
[1723097944184,6.101,153.97,153.89,28.44]
[1723097944397,6.101,153.97,153.9,20.34]
[1723097945162,6.101,153.97,153.91,28.44]
[1723097945364,6.101,153.97,153.92,20.0]
[1723097946168,16.3673,153.98,153.92,21.29860081]
[1723097946491,16.3673,153.98,153.93,29.73851644]
[1723097946668,16.3673,153.98,153.94,20.0]
[1723097946988,2017.837116,154.0,153.97,28.44]
[1723097947159,2011.74992679,154.0,153.99,6.0781]
[1723097947363,1991.85548597,154.0,153.99,48.61]
[1723097947562,1991.85548597,154.0,153.99,48.44]
[1723097947780,1991.85548597,154.0,153.95,28.61]
[1723097947984,1991.85548597,154.0,153.96,20.0]
[1723097948573,1991.85548597,154.0,153.94,20.0]
[1723097949308,1991.85548597,154.0,153.93,28.44]
[1723097949309,1991.85548597,154.0,153.89,5.47798958]
[1723097949481,1991.85548597,154.0,153.86,6.0856]
[1723097949482,6.0719,153.97,153.86,28.44]
[1723097949681,1.62445606,153.96,153.86,28.44]
[1723097949982,6.0719,153.97,153.86,28.44]
[1723097949983,7.69647983,153.97,153.86,28.44]
[1723097950184,6.0719,153.97,153.86,28.44]
[1723097950388,6.0719,153.97,153.9,28.44]
[1723097950601,1991.85548597,154.0,153.9,28.44]
[1723097950802,1991.85548597,154.0,153.96,28.44]
[1723097951100,1991.85548597,154.0,153.98,28.44]
[1723097951695,1991.85548597,154.0,153.94,28.44]
[1723097951880,1991.85548597,154.0,153.95,65.34]
[1723097952080,1991.85548597,154.0,153.96,28.44]
[1723097952294,1991.85548597,154.0,153.97,20.0]
[1723097953594,1991.85548597,154.0,153.98,28.44]
[1723097953795,1991.85548597,154.0,153.99,20.0]
[1723097956390,1991.85548597,154.0,153.99,20.17]
[1723097956797,1991.85548597,154.0,153.99,20.34]